bitfinex/quotes_BTCUSD_20241022
["timestamp","ask_amount","ask_price","bid_price","bid_amount"]
[1729560939855,0.00927848,67445.0,67444.0,0.148271]
[1729560940276,0.01027848,67445.0,67444.0,0.148271]
[1729560940757,0.01027848,67445.0,67443.0,0.17895915]
[1729560941018,0.00463932,67444.0,67443.0,0.17895915]
[1729560941449,0.00463932,67444.0,67443.0,0.32723215]
[1729560942108,0.00463926,67444.0,67443.0,0.32723215]
[1729560943308,0.00463926,67444.0,67443.0,0.32923215]
[1729560943508,0.00463926,67444.0,67443.0,0.03]
[1729560943712,0.15291026,67444.0,67443.0,0.032]
[1729560943940,0.29191043,67444.0,67443.0,0.034]
[1729560944141,0.24749471,67444.0,67443.0,0.032]
[1729560944311,0.2919106,67444.0,67443.0,0.032]
[1729560944520,0.24749471,67444.0,67443.0,0.034]
[1729560945296,0.31413851,67444.0,67443.0,0.032]
[1729560945747,0.31413851,67444.0,67443.0,0.03]
[1729560945946,0.24749474,67444.0,67443.0,0.03]
[1729560946166,0.24749474,67444.0,67443.0,0.031]
[1729560946167,0.31515426,67444.0,67443.0,0.031]
[1729560946391,0.41256829,67444.0,67443.0,0.031]
[1729560946824,0.49356829,67444.0,67443.0,0.033]
[1729560947039,0.6046413,67444.0,67443.0,0.033]
[1729560947484,0.6046413,67444.0,67443.0,0.003]
[1729560947697,0.49356829,67444.0,67443.0,0.003]
[1729560949573,0.49439429,67444.0,67443.0,0.003]
[1729560949802,0.49450692,67444.0,67443.0,0.003]
[1729560950045,0.66299215,67444.0,67443.0,0.003]
[1729560952098,0.66299255,67444.0,67443.0,0.003]
[1729560952309,0.80344011,67444.0,67443.0,0.003]
[1729560952527,0.66299255,67444.0,67443.0,0.003]
[1729560952976,0.66299255,67444.0,67440.0,0.001652]
[1729560952977,0.31676223,67441.0,67440.0,0.001652]
[1729560953217,0.66157255,67441.0,67440.0,0.001652]
[1729560953677,0.93705865,67441.0,67440.0,0.001652]
[1729560953898,0.80363188,67441.0,67440.0,0.001652]
[1729560954132,0.93704577,67441.0,67440.0,0.001652]
[1729560954373,0.80863188,67441.0,67440.0,0.001652]
[1729560954637,0.81563188,67441.0,67440.0,0.001652]
[1729560954876,0.80863188,67441.0,67440.0,0.001652]
[1729560955121,0.50008732,67441.0,67440.0,0.001652]
[1729560955574,0.49308732,67441.0,67440.0,0.001652]
[1729560955817,0.62647248,67441.0,67440.0,0.001652]
[1729560956059,0.34481032,67441.0,67440.0,0.001652]
[1729560956269,0.26572656,67441.0,67440.0,0.001652]
[1729560956535,0.05709421,67441.0,67440.0,0.15790815]
[1729560956983,0.05245435,67441.0,67440.0,0.15790815]
[1729560957211,0.06545435,67441.0,67440.0,0.00962915]
[1729560957450,0.05245435,67441.0,67440.0,0.00962915]
[1729560957899,0.05709421,67441.0,67440.0,0.00962915]
[1729560958126,0.05709421,67441.0,67440.0,0.15790815]
[1729560958344,0.06045435,67441.0,67440.0,0.15790815]
[1729560959887,0.05245435,67441.0,67440.0,0.15790815]
[1729560960081,0.05245435,67441.0,67440.0,0.00962915]
[1729560960321,0.05245435,67441.0,67440.0,0.15990815]
[1729560960532,0.04445435,67442.0,67440.0,0.15990815]
[1729560960750,0.04445631,67441.0,67440.0,0.15990815]
[1729560961038,0.04545631,67441.0,67440.0,0.16190815]
[1729560961284,0.04445631,67442.0,67440.0,0.15990815]
[1729560961500,0.04445631,67442.0,67441.0,0.148277]
[1729560961711,0.04445631,67442.0,67441.0,0.00798163]
[1729560962363,0.04445631,67442.0,67441.0,0.15625863]
[1729560962820,0.04445728,67442.0,67441.0,0.15625863]
[1729560963034,0.06668592,67443.0,67441.0,0.15625863]
[1729560963255,0.06668592,67443.0,67441.0,0.00798163]
[1729560963475,0.001,67442.0,67441.0,0.00798163]
[1729560963937,0.04445735,67442.0,67441.0,0.15625863]
[1729560964403,0.04445735,67442.0,67441.0,0.18625863]
[1729560965043,0.04445735,67442.0,67441.0,0.03798163]
[1729560965498,0.06968592,67443.0,67441.0,0.03798163]
[1729560965499,0.06868592,67443.0,67441.0,0.03798163]
[1729560965767,0.19737148,67442.0,67441.0,0.03898163]
[1729560965985,0.19273217,67442.0,67441.0,0.03898163]
[1729560966206,0.19373217,67442.0,67441.0,0.03898163]
[1729560966423,0.19373217,67442.0,67441.0,0.031]
[1729560966640,0.19373217,67442.0,67441.0,0.03]
[1729560966853,0.19373205,67442.0,67441.0,0.03]
[1729560967468,0.36209141,67442.0,67441.0,0.03]
[1729560967787,0.31763436,67442.0,67441.0,0.03]
[1729560968698,0.31763436,67442.0,67441.0,0.031]
[1729560969146,0.31763436,67442.0,67441.0,0.001]
[1729560969589,0.226875,67442.0,67441.0,0.001]
[1729560970513,0.70455086,67442.0,67441.0,0.001]
[1729560970754,0.59340824,67442.0,67441.0,0.001]
[1729560970991,0.48520237,67442.0,67441.0,0.001]
[1729560971505,0.49020237,67442.0,67441.0,0.001]
[1729560971741,0.334777,67441.0,67440.0,0.00101241]
[1729560971998,0.60711024,67441.0,67440.0,0.00101241]
[1729560972234,0.75806939,67441.0,67440.0,0.00101241]
[1729560972500,0.75606939,67441.0,67440.0,0.00101241]
[1729560972733,0.92304344,67441.0,67440.0,0.00101241]
[1729560972975,0.92504344,67441.0,67440.0,0.00101241]
[1729560973407,0.7750009,67441.0,67440.0,0.00101241]
[1729560973858,0.7750009,67441.0,67436.0,0.001652]
[1729560973859,0.33639187,67437.0,67436.0,0.001652]
[1729560974085,0.53771711,67437.0,67436.0,0.001652]
[1729560974320,0.40437891,67437.0,67436.0,0.001652]
[1729560974547,0.25764412,67437.0,67436.0,0.3038987]
[1729560974761,0.009,67441.0,67440.0,0.15327855]
[1729560974976,0.009,67441.0,67440.0,0.47133456]
[1729560975188,0.000826,67443.0,67440.0,0.47133456]
[1729560975189,0.000826,67443.0,67440.0,0.33110207]
[1729560975414,0.000826,67443.0,67442.0,0.15327455]
[1729560975691,0.000826,67443.0,67442.0,0.3022337]
[1729560976225,0.000826,67443.0,67442.0,0.31028021]
[1729560976433,0.001826,67443.0,67442.0,0.31028021]
[1729560976927,0.150099,67443.0,67442.0,0.00804651]
[1729560977150,0.148284,67438.0,67436.0,0.00665155]
[1729560977393,0.148286,67437.0,67436.0,0.001652]
[1729560977638,0.31738286,67437.0,67436.0,0.001652]
[1729560977867,0.24548444,67437.0,67436.0,0.001652]
[1729560978102,0.41411912,67437.0,67436.0,0.001652]
[1729560978338,0.31692068,67437.0,67436.0,0.001652]
[1729560978578,0.42798736,67437.0,67436.0,0.001652]
[1729560978829,0.42798736,67437.0,67436.0,0.002652]
[1729560979275,0.15792585,67437.0,67436.0,0.002652]
[1729560979511,0.41075647,67437.0,67436.0,0.002652]
[1729560979740,0.32690734,67437.0,67436.0,0.002652]
[1729560979955,0.53789732,67437.0,67436.0,0.002652]
[1729560980183,0.44905098,67437.0,67436.0,0.002652]
[1729560980647,0.55511766,67437.0,67436.0,0.001652]
[1729560980872,0.43297402,67437.0,67436.0,0.001652]
[1729560981068,0.32690734,67437.0,67436.0,0.001652]
[1729560981391,0.41574961,67437.0,67436.0,0.001652]
[1729560981630,0.41574903,67437.0,67436.0,0.001652]
[1729560981839,0.41574163,67437.0,67436.0,0.001652]
[1729560982258,0.32690118,67437.0,67436.0,0.001652]
[1729560982682,0.41574012,67437.0,67436.0,0.001652]
[1729560983312,0.32690118,67437.0,67436.0,0.001652]
[1729560983727,0.16292585,67437.0,67436.0,0.001652]
[1729560983960,0.32689356,67437.0,67436.0,0.001652]
[1729560985196,0.32689373,67437.0,67436.0,0.001652]
[1729560986349,0.4379458,67437.0,67436.0,0.001652]
[1729560986626,0.32689373,67437.0,67436.0,0.001652]
[1729560986826,0.43124261,67437.0,67436.0,0.001652]
[1729560987266,0.32689373,67437.0,67436.0,0.001652]
[1729560987491,0.32689373,67437.0,67436.0,0.00084384]
[1729560988371,0.32690232,67437.0,67436.0,0.00084384]
[1729560989729,0.17861632,67437.0,67436.0,0.00084384]
[1729560989955,0.32690232,67437.0,67436.0,0.01286614]
[1729560991061,0.32690232,67437.0,67436.0,0.00084384]
[1729560992731,0.41574584,67437.0,67436.0,0.00084384]
[1729560992941,0.41574592,67437.0,67436.0,0.00084384]
[1729560993154,0.32690655,67437.0,67436.0,0.00084384]
[1729560993604,0.32690974,67437.0,67436.0,0.00084384]
[1729560995007,0.17862374,67437.0,67436.0,0.14913184]
[1729560995241,0.0146401,67437.0,67436.0,0.14913184]
[1729560995475,0.01,67437.0,67436.0,0.16115027]
[1729560996138,0.010826,67437.0,67436.0,0.16115027]
[1729560997225,0.010826,67437.0,67436.0,0.01286227]
[1729560998578,0.159112,67437.0,67436.0,0.01286227]
[1729560999515,0.16375171,67437.0,67436.0,0.01286227]
[1729560999748,0.20353158,67437.0,67436.0,0.01286227]
[1729560999983,0.20817129,67437.0,67436.0,0.01286227]
[1729561001231,0.16375171,67437.0,67436.0,0.01286227]
[1729561001452,0.01546571,67437.0,67436.0,0.01286227]
[1729561001681,0.01546571,67437.0,67436.0,0.16115027]
[1729561002821,0.01546571,67437.0,67436.0,0.01286227]
[1729561003042,0.0598904,67437.0,67436.0,0.16115027]
[1729561003274,0.010826,67437.0,67436.0,0.16115027]
[1729561004756,0.010826,67437.0,67436.0,0.01286227]
[1729561004964,0.010826,67437.0,67436.0,0.01786182]
[1729561005186,0.010826,67437.0,67436.0,0.16614982]
[1729561005416,0.01546564,67437.0,67436.0,0.16614982]
[1729561005617,0.010826,67437.0,67436.0,0.16614982]
[1729561005823,0.010826,67437.0,67436.0,0.48420583]
[1729561006039,0.01546564,67437.0,67436.0,0.48420583]
[1729561006715,0.00546564,67437.0,67436.0,0.48420583]
[1729561007137,0.00546564,67437.0,67436.0,0.48520583]
[1729561009109,0.000826,67437.0,67436.0,0.48520583]
[1729561012729,0.000826,67437.0,67436.0,0.71096498]
[1729561012953,0.000826,67437.0,67436.0,0.56700583]
[1729561013626,0.000826,67437.0,67436.0,0.56900583]
[1729561013877,0.000826,67437.0,67436.0,0.71803563]
[1729561014071,0.000826,67437.0,67436.0,0.80453563]
[1729561014346,0.000826,67437.0,67436.0,0.76050583]
[1729561014560,0.000826,67437.0,67436.0,0.90746498]
[1729561014813,0.000826,67437.0,67436.0,0.75850583]
[1729561015247,0.000826,67437.0,67436.0,0.75750583]
[1729561015478,0.002826,67437.0,67436.0,0.76450583]
[1729561015707,0.001826,67437.0,67436.0,0.75950583]
[1729561015923,0.000826,67437.0,67436.0,0.75750583]
[1729561016136,0.014826,67437.0,67436.0,0.66100583]
[1729561016360,0.028826,67437.0,67436.0,0.58420583]
[1729561023309,0.111126,67437.0,67436.0,0.31510897]
[1729561023944,0.028826,67437.0,67436.0,0.31510897]
[1729561024981,0.014826,67437.0,67436.0,0.31510897]
[1729561025194,0.001826,67437.0,67436.0,0.31510897]
[1729561025402,0.000826,67437.0,67436.0,0.31510897]
[1729561025675,0.009826,67437.0,67436.0,0.31510897]
[1729561025857,0.010826,67437.0,67436.0,0.31510897]
[1729561026075,0.001826,67437.0,67436.0,0.31510897]
[1729561026518,0.002826,67437.0,67436.0,0.31510897]
[1729561032946,0.082126,67437.0,67436.0,0.31510897]
[1729561035189,0.080126,67437.0,67436.0,0.31510897]
[1729561035625,0.082126,67437.0,67436.0,0.16682097]
[1729561035872,0.180926,67437.0,67436.0,0.16682097]
[1729561036075,0.180926,67437.0,67436.0,0.31510897]
[1729561036288,0.181926,67437.0,67436.0,0.31510897]
[1729561036952,0.180926,67437.0,67436.0,0.31510897]
[1729561037464,0.180926,67437.0,67436.0,0.16614982]
[1729561037691,0.179926,67437.0,67436.0,0.01286227]
[1729561037903,0.18456494,67437.0,67436.0,0.01286227]
[1729561038140,0.180926,67437.0,67436.0,0.25730627]
[1729561038374,0.181926,67437.0,67436.0,0.26922632]
[1729561038617,0.179926,67437.0,67436.0,0.26922632]
[1729561038823,0.180926,67437.0,67436.0,0.26922632]
[1729561039037,0.181926,67437.0,67436.0,0.26922632]
[1729561041091,0.002826,67437.0,67436.0,0.27422587]
[1729561041389,0.002826,67437.0,67436.0,0.42615054]
[1729561041620,0.002826,67437.0,67436.0,0.42318502]
[1729561046675,0.002826,67437.0,67436.0,0.42818502]
[1729561046893,0.002826,67437.0,67436.0,0.65689623]
[1729561047599,0.002826,67437.0,67436.0,0.61628502]
[1729561047827,0.001826,67437.0,67436.0,0.61628502]
[1729561048283,0.014826,67437.0,67436.0,0.61628502]
[1729561048512,0.028826,67437.0,67436.0,0.61628502]
[1729561049438,0.028826,67437.0,67436.0,0.60628502]
[1729561049642,0.028826,67437.0,67436.0,0.61628502]
[1729561050525,0.028826,67437.0,67436.0,0.72445945]
[1729561050744,0.028826,67437.0,67436.0,0.61628502]
[1729561050956,0.000826,67437.0,67436.0,0.61828502]
[1729561051170,0.011826,67437.0,67436.0,0.61928502]
[1729561051376,0.025826,67437.0,67436.0,0.76349947]
[1729561051585,0.025826,67437.0,67436.0,0.72845945]
[1729561051799,0.022826,67437.0,67436.0,0.66625471]
[1729561052049,0.022826,67437.0,67436.0,0.77442914]
[1729561052267,0.036826,67437.0,67436.0,0.66725471]
[1729561052533,0.036826,67437.0,67436.0,0.58915471]
[1729561052748,0.036826,67437.0,67436.0,0.64135945]
[1729561052960,0.036826,67437.0,67436.0,0.65135945]
[1729561053605,0.036826,67437.0,67436.0,0.54318502]
[1729561053824,0.036826,67437.0,67436.0,0.65135945]
[1729561054476,0.036826,67437.0,67436.0,0.54318502]
[1729561055349,0.036826,67437.0,67436.0,0.65135945]
[1729561055765,0.036826,67437.0,67436.0,0.54118502]
[1729561057977,0.036826,67437.0,67436.0,0.57801102]
[1729561060072,0.036826,67437.0,67436.0,0.58001102]
[1729561060521,0.036826,67437.0,67436.0,0.57801102]
[1729561060767,0.217726,67437.0,67436.0,0.53118502]
[1729561060980,0.217726,67437.0,67436.0,0.52618502]
[1729561061197,0.217726,67437.0,67436.0,0.53118502]
[1729561061865,0.036826,67437.0,67436.0,0.53618502]
[1729561062501,0.036826,67437.0,67436.0,0.53818502]
[1729561062706,0.036826,67437.0,67436.0,0.53618502]
[1729561062973,0.036826,67437.0,67436.0,0.53318502]
[1729561063182,0.036826,67437.0,67436.0,0.54318502]
[1729561063872,0.036826,67437.0,67436.0,0.54118502]
[1729561065661,0.036826,67437.0,67436.0,0.54795128]
[1729561065875,0.036826,67437.0,67436.0,0.54995128]
[1729561067692,0.036826,67437.0,67436.0,0.53118502]
[1729561067900,0.036826,67437.0,67436.0,0.54118502]
[1729561072248,0.036826,67437.0,67436.0,0.54318502]
[1729561074763,0.036826,67437.0,67436.0,0.58719496]
[1729561075182,0.036826,67437.0,67436.0,0.54118502]
[1729561075387,0.036826,67437.0,67436.0,0.587198]
[1729561075813,0.036826,67437.0,67436.0,0.47902357]
[1729561076033,0.036826,67437.0,67436.0,0.587198]
[1729561076239,0.036826,67437.0,67436.0,0.47902357]
[1729561076457,0.112326,67437.0,67436.0,0.46404184]
[1729561076668,0.202426,67437.0,67436.0,0.31801059]
[1729561078920,0.202426,67437.0,67436.0,0.42618502]
[1729561085634,0.202426,67437.0,67436.0,0.31801059]
[1729561089154,0.24267454,67437.0,67436.0,0.01576389]
[1729561089401,0.45764701,67437.0,67436.0,0.00384384]
[1729561089605,0.64401034,67437.0,67436.0,0.00384384]
[1729561089824,0.6037618,67437.0,67436.0,0.00384384]
[1729561090033,0.5677618,67437.0,67436.0,0.00084384]
[1729561090462,0.5687618,67437.0,67436.0,0.00984384]
[1729561090679,0.5677618,67437.0,67436.0,0.00084384]
[1729561090901,0.4194758,67437.0,67436.0,0.00084384]
[1729561091135,0.23309649,67437.0,67436.0,0.16305403]
[1729561091355,0.167426,67437.0,67436.0,0.16105403]
[1729561091780,0.166426,67437.0,67436.0,0.16105403]
[1729561092450,0.21086997,67437.0,67436.0,0.16105403]
[1729561092654,0.21186997,67437.0,67436.0,0.16105403]
[1729561092878,0.21086997,67437.0,67436.0,0.16105403]
[1729561093297,0.21186997,67437.0,67436.0,0.16105403]
[1729561093733,0.167426,67437.0,67436.0,0.16105403]
[1729561094145,0.21186009,67437.0,67436.0,0.16105403]
[1729561095020,0.21286009,67437.0,67436.0,0.16105403]
[1729561095865,0.168426,67437.0,67436.0,0.16105403]
[1729561100659,0.21285186,67437.0,67436.0,0.16105403]
[1729561100870,0.168426,67437.0,67436.0,0.16105403]
[1729561101963,0.168426,67437.0,67436.0,0.01276603]
[1729561102186,0.21285186,67437.0,67436.0,0.01276603]
[1729561103504,0.168426,67437.0,67436.0,0.01276603]
[1729561106173,0.21284155,67437.0,67436.0,0.16105403]
[1729561106391,0.168426,67437.0,67436.0,0.16105403]
[1729561107246,0.2208259,67437.0,67436.0,0.16105403]
[1729561107528,0.168426,67437.0,67436.0,0.16105403]
[1729561107755,0.168426,67437.0,67436.0,0.01276603]
[1729561108598,0.21284108,67437.0,67436.0,0.01276603]
[1729561112105,0.168426,67437.0,67436.0,0.01276603]
[1729561112322,0.168426,67437.0,67436.0,0.16105403]
[1729561112762,0.22546534,67437.0,67436.0,0.01276603]
[1729561113225,0.42559009,67437.0,67436.0,0.01276603]
[1729561113443,0.22082573,67437.0,67436.0,0.00084384]
[1729561113672,0.44779839,67437.0,67436.0,0.00084384]
[1729561113976,0.50357309,67437.0,67436.0,0.00084384]
[1729561114189,0.60093094,67437.0,67436.0,0.00084384]
[1729561114416,0.60207981,67437.0,67436.0,0.00084384]
[1729561114861,0.60093094,67437.0,67436.0,0.00084384]
[1729561115077,0.59893094,67437.0,67436.0,0.00084384]
[1729561115295,0.7320752,67437.0,67436.0,0.00084384]
[1729561116870,0.7330752,67437.0,67436.0,0.00084384]
[1729561117119,0.61283749,67437.0,67436.0,0.00084384]
[1729561117346,0.73307642,67437.0,67436.0,0.00084384]
[1729561118229,0.73407642,67437.0,67436.0,0.00084384]
[1729561118657,0.73307642,67437.0,67436.0,0.00084384]
[1729561119527,0.62490199,67437.0,67436.0,0.00084384]
[1729561119740,0.73307642,67437.0,67436.0,0.00084384]
[1729561120867,0.148299,67431.0,67423.0,0.22312298]
[1729561121082,0.61147403,67431.0,67423.0,0.22312298]
[1729561121983,0.61147403,67431.0,67420.0,0.00499955]
[1729561122657,0.61147403,67431.0,67420.0,0.15332255]
[1729561122892,0.61147403,67431.0,67420.0,0.00499955]
[1729561123533,0.59940953,67431.0,67420.0,0.00499955]
[1729561123758,0.71964999,67431.0,67418.0,0.00499955]
[1729561123973,0.85896843,67431.0,67416.0,0.22980053]
[1729561124177,0.85994105,67431.0,67418.0,0.00499955]
[1729561124400,0.99325949,67431.0,67419.0,0.00499955]
[1729561124631,0.99425949,67431.0,67418.0,0.15332755]
[1729561124864,0.99225949,67431.0,67418.0,0.00499955]
[1729561125083,1.01014652,67431.0,67418.0,0.00499955]
[1729561125313,1.01014652,67431.0,67418.0,0.148326]
[1729561125314,0.76750685,67431.0,67418.0,0.148326]
[1729561125549,0.76750685,67431.0,67419.0,0.15332455]
[1729561125771,0.76850685,67431.0,67419.0,0.15332455]
[1729561125987,0.87668128,67431.0,67419.0,0.15332455]
[1729561126197,0.76850685,67431.0,67419.0,0.00499955]
[1729561126851,0.90174573,67431.0,67419.0,0.15332355]
[1729561127069,0.77450685,67431.0,67419.0,0.15332355]
[1729561127289,0.76176605,67431.0,67419.0,0.15332355]
[1729561127500,0.76349979,67431.0,67419.0,0.15332355]
[1729561127705,0.76949979,67431.0,67419.0,0.15332355]
[1729561127924,0.90972253,67431.0,67419.0,0.15332355]
[1729561128146,0.75862029,67431.0,67416.0,0.22980053]
[1729561128363,0.87294048,67431.0,67416.0,0.22980053]
[1729561128570,0.75776605,67431.0,67417.0,0.148329]
[1729561128789,0.75776605,67431.0,67416.0,0.33797496]
[1729561129005,0.76462029,67431.0,67416.0,0.22980053]
[1729561129235,0.75762029,67431.0,67417.0,0.148329]
[1729561129461,0.76462029,67431.0,67417.0,0.148329]
[1729561129886,0.76462029,67431.0,67416.0,0.22980053]
[1729561129887,1.00598564,67431.0,67416.0,0.22980053]
[1729561130109,0.87279472,67431.0,67416.0,0.22980053]
[1729561130332,0.70075862,67431.0,67416.0,0.22980053]
[1729561130585,0.8676345,67431.0,67416.0,0.22980053]
[1729561131248,0.87150917,67431.0,67416.0,0.22480098]
[1729561131478,0.88450917,67431.0,67416.0,0.22980053]
[1729561131678,0.89750917,67431.0,67416.0,0.22980053]
[1729561131902,0.88450917,67431.0,67416.0,0.22980053]
[1729561132321,0.89750917,67431.0,67416.0,0.22980053]
[1729561132968,0.68116031,67431.0,67416.0,0.22980053]
[1729561133250,0.66728104,67431.0,67423.0,0.148315]
[1729561133470,0.53414138,67431.0,67424.0,0.22312298]
[1729561134125,0.52114138,67431.0,67421.0,0.001676]
[1729561134341,0.50350032,67431.0,67421.0,0.001676]
[1729561134568,0.51514122,67431.0,67421.0,0.001676]
[1729561134780,0.52114124,67431.0,67421.0,0.001676]
[1729561135012,0.50814124,67431.0,67421.0,0.001676]
[1729561135225,0.52114124,67431.0,67421.0,0.001676]
[1729561135665,0.62931567,67431.0,67421.0,0.001676]
[1729561135890,0.148319,67422.0,67421.0,0.001676]
[1729561136099,0.37823941,67422.0,67421.0,0.001676]
[1729561136329,0.39211058,67422.0,67421.0,0.001676]
[1729561136534,0.39953603,67422.0,67421.0,0.001676]
[1729561136744,0.53625928,67422.0,67421.0,0.001676]
[1729561136959,0.55844903,67422.0,67421.0,0.001676]
[1729561137199,0.49187978,67422.0,67421.0,0.001676]
[1729561137665,0.74444759,67422.0,67421.0,0.001676]
[1729561138080,0.74444835,67422.0,67421.0,0.001676]
[1729561138296,0.65568935,67422.0,67421.0,0.001676]
[1729561140057,0.65551087,67422.0,67421.0,0.001676]
[1729561140703,0.51878762,67422.0,67421.0,0.001676]
[1729561140971,0.52478762,67422.0,67421.0,0.001676]
[1729561141196,0.50491645,67422.0,67421.0,0.001676]
[1729561141416,0.51091645,67422.0,67421.0,0.001676]
[1729561141625,0.51791645,67422.0,67421.0,0.001676]
[1729561142058,0.36977593,67422.0,67421.0,0.001676]
[1729561142282,0.59941371,67422.0,67421.0,0.001676]
[1729561142512,0.34728612,67422.0,67421.0,0.001676]
[1729561142729,0.0106412,67422.0,67421.0,0.001676]
[1729561142949,0.0046412,67422.0,67421.0,0.16218217]
[1729561143374,0.0116412,67422.0,67421.0,0.41703257]
[1729561143607,0.0116412,67422.0,67421.0,0.31614132]
[1729561143852,0.0106412,67422.0,67421.0,0.31614132]
[1729561144082,0.001,67422.0,67421.0,0.48164087]
[1729561144309,0.001,67422.0,67421.0,0.65070767]
[1729561144540,0.001,67422.0,67421.0,0.79538452]
[1729561144796,0.0046412,67434.0,67431.0,0.005]
[1729561145022,0.0046412,67435.0,67433.0,0.1690668]
[1729561145266,0.0054672,67436.0,67435.0,0.14829]
[1729561145505,0.0054672,67436.0,67435.0,0.15329]
[1729561145506,0.000826,67436.0,67435.0,0.15329]
[1729561145742,0.000826,67436.0,67435.0,0.24694944]
[1729561146011,0.000826,67436.0,67435.0,0.24991468]
[1729561146482,0.000826,67436.0,67435.0,0.25194899]
[1729561146696,0.000826,67436.0,67435.0,0.40090814]
[1729561147793,0.002826,67436.0,67435.0,0.40090814]
[1729561148012,0.001826,67436.0,67435.0,0.40090814]
[1729561148439,0.002826,67436.0,67435.0,0.40090814]
[1729561148659,0.001826,67436.0,67435.0,0.40090814]
[1729561149786,0.000826,67436.0,67435.0,0.40090814]
[1729561150008,0.001826,67436.0,67435.0,0.40090814]
[1729561150236,0.002826,67436.0,67435.0,0.40090814]
[1729561150460,0.001826,67436.0,67435.0,0.40090814]
[1729561150669,0.000826,67436.0,67435.0,0.40090814]
[1729561150881,0.001826,67436.0,67435.0,0.40090814]
[1729561151105,0.001826,67436.0,67435.0,0.31940814]
[1729561151309,0.002826,67436.0,67435.0,0.31940814]
[1729561151564,0.001826,67436.0,67435.0,0.31940814]
[1729561151767,0.001826,67436.0,67435.0,0.16611814]
[1729561151983,0.002826,67436.0,67435.0,0.31440814]
[1729561152412,0.002826,67436.0,67435.0,0.16611814]
[1729561152845,0.001826,67436.0,67435.0,0.31440814]
[1729561153479,0.002826,67436.0,67435.0,0.16611814]
[1729561153702,0.001826,67436.0,67435.0,0.16611814]
[1729561153929,0.002826,67436.0,67435.0,0.16611814]
[1729561154146,0.151114,67436.0,67435.0,0.16611814]
[1729561154358,0.001826,67436.0,67435.0,0.33518494]
[1729561154592,0.002826,67436.0,67435.0,0.5474495]
[1729561154841,0.001826,67436.0,67435.0,0.48347494]
[1729561155077,0.002826,67436.0,67435.0,0.48347494]
[1729561155964,0.001826,67436.0,67435.0,0.48347494]
[1729561156209,0.002826,67436.0,67435.0,0.48347494]
[1729561156416,0.001826,67436.0,67435.0,0.48347494]
[1729561157250,0.002826,67436.0,67435.0,0.48347494]
[1729561163216,0.001826,67436.0,67435.0,0.48347494]
[1729561163427,0.000826,67436.0,67435.0,0.48347494]
[1729561163639,0.001826,67436.0,67435.0,0.48347494]
[1729561163863,0.000826,67436.0,67435.0,0.48347494]
[1729561164089,0.001826,67436.0,67435.0,0.48847494]
[1729561164318,0.001826,67436.0,67435.0,0.48347494]
[1729561164548,0.000826,67436.0,67435.0,0.31440814]
[1729561165854,0.001826,67436.0,67435.0,0.31440814]
[1729561166290,0.002826,67436.0,67435.0,0.31440814]
[1729561166726,0.002826,67436.0,67435.0,0.48347494]
[1729561167615,0.001826,67436.0,67435.0,0.48347494]
[1729561168245,0.000826,67436.0,67435.0,0.48347494]
[1729561168453,0.001826,67436.0,67435.0,0.48347494]
[1729561168917,0.002826,67436.0,67435.0,0.48347494]
[1729561170664,0.001826,67436.0,67435.0,0.48347494]
[1729561171114,0.150114,67436.0,67435.0,0.01215944]
[1729561171321,0.14829,67435.0,67434.0,0.00499955]
[1729561171543,0.001826,67436.0,67435.0,0.00499955]
[1729561171772,0.000826,67436.0,67435.0,0.00499955]
[1729561171997,0.001826,67436.0,67435.0,0.48822544]
[1729561172235,0.002826,67436.0,67435.0,0.48822544]
[1729561172458,0.001826,67436.0,67435.0,0.48822544]
[1729561172673,0.000826,67436.0,67435.0,0.48822544]
[1729561172894,0.002826,67436.0,67435.0,0.48822544]
[1729561173109,0.001826,67436.0,67435.0,0.48822544]
[1729561173811,0.002826,67436.0,67435.0,0.48822544]
[1729561177880,0.002826,67436.0,67435.0,0.48803484]
[1729561179975,0.002826,67436.0,67435.0,0.31396804]
[1729561182424,0.151114,67436.0,67435.0,0.01690949]
[1729561182883,0.151114,67436.0,67435.0,0.00499955]
[1729561183743,0.002826,67436.0,67435.0,0.1539587]
[1729561183967,0.002826,67436.0,67435.0,0.31413842]
[1729561188327,0.04723032,67436.0,67435.0,0.31413842]
[1729561188528,0.04723032,67436.0,67435.0,0.3022487]
[1729561188980,0.04723032,67436.0,67435.0,0.16586818]
[1729561189412,0.151114,67436.0,67435.0,0.16586818]
[1729561189626,0.31702049,67436.0,67435.0,0.16586818]
[1729561189848,0.31714796,67436.0,67435.0,0.16586818]
[1729561190086,0.16885996,67436.0,67435.0,0.1539587]
[1729561190300,0.250414,67436.0,67435.0,0.1539587]
[1729561190555,0.250414,67436.0,67435.0,0.16586818]
[1729561191019,0.36266225,67436.0,67435.0,0.01690903]
[1729561191227,0.14829,67435.0,67434.0,0.03]
[1729561191434,0.48653875,67435.0,67434.0,0.03]
[1729561191643,0.53648633,67435.0,67434.0,0.03]
[1729561192281,0.48653875,67435.0,67434.0,0.03]
[1729561192695,0.48853875,67435.0,67434.0,0.03]
[1729561192895,0.48753875,67435.0,67434.0,0.03]
[1729561193046,0.48653875,67435.0,67434.0,0.03]
[1729561193448,0.48853875,67435.0,67434.0,0.03]
[1729561194262,0.49053875,67435.0,67434.0,0.03]
[1729561194517,0.62175173,67435.0,67434.0,0.03]
[1729561194907,0.49253875,67435.0,67434.0,0.03]
[1729561195081,0.49053875,67435.0,67434.0,0.03]
[1729561195494,0.49453875,67435.0,67434.0,0.03]
[1729561199601,0.49453875,67435.0,67434.0,0.4474266]
[1729561199602,0.34624875,67435.0,67434.0,0.4474266]
[1729561200147,0.182,67435.0,67434.0,0.19092481]
[1729561200364,0.43501108,67435.0,67434.0,0.33921781]
[1729561201265,0.43501108,67435.0,67434.0,0.19092481]
[1729561201519,0.43501108,67435.0,67434.0,0.04196566]
[1729561201520,0.58330108,67435.0,67434.0,0.04196566]
[1729561201747,0.49439075,67435.0,67434.0,0.04196566]
[1729561201970,0.49439075,67435.0,67434.0,0.03]
[1729561202187,0.61442316,67435.0,67434.0,0.03]
[1729561203702,0.49439075,67435.0,67434.0,0.03]
[1729561204783,0.49436368,67435.0,67434.0,0.03]
[1729561205713,0.49436368,67435.0,67434.0,0.030826]
[1729561205936,0.49601568,67435.0,67434.0,0.030826]
[1729561207285,0.60710359,67435.0,67434.0,0.030826]
[1729561208411,0.49601568,67435.0,67434.0,0.030826]
[1729561209764,0.49596131,67435.0,67434.0,0.030826]
[1729561211763,0.49596131,67435.0,67434.0,0.04280848]